fUSD/lending_fUSD_20250217
["ID","MTS","AMOUNT","RATE_DAILY","PERIOD"]
[353339679,1739782265043,-568.28,0.00013945,2]
[353339680,1739782265060,-500.0,0.00013945,2]
[353339681,1739782265076,-537.33,0.00013945,2]
[353339682,1739782265090,-500.0,0.00013945,2]
[353339683,1739782265105,-647.11,0.00013945,2]
[353339684,1739782265119,-743.6,0.00013945,2]
[353339685,1739782265133,-783.7,0.00013945,2]
[353339686,1739782265149,-559.89,0.00013945,2]
[353339687,1739782265310,-649.94,0.00013945,2]
[353339688,1739782265327,-500.0,0.00013945,2]
[353339689,1739782265338,-500.0,0.00013945,2]
[353339690,1739782265348,-500.0,0.00013945,2]
[353339691,1739782265359,-500.0,0.00013945,2]
[353339692,1739782265369,-500.0,0.00013945,2]
[353339693,1739782265379,-500.0,0.00013945,2]
[353339694,1739782265389,-560.76,0.00013945,2]
[353339695,1739782265400,-950.17,0.00013945,2]
[353339696,1739782265412,-500.0,0.00013945,2]
[353339697,1739782265423,-593.13,0.00013945,2]
[353339698,1739782265433,-561.01,0.00013945,2]
[353339699,1739782265443,-500.0,0.00013945,2]
[353339700,1739782265454,-500.0,0.00013945,2]
[353339701,1739782265464,-500.0,0.00013945,2]
[353339702,1739782265475,-500.0,0.00013945,2]
[353339703,1739782265485,-500.0,0.00013945,2]
[353339704,1739782265495,-500.0,0.00013945,2]
[353339705,1739782265506,-500.0,0.00013945,2]
[353339706,1739782265515,-500.0,0.00013945,2]
[353339707,1739782265524,-622.63,0.00013945,2]
[353339708,1739782265533,-500.0,0.00013945,2]
[353339709,1739782265543,-500.0,0.00013945,2]
[353339710,1739782265557,-508.41,0.00013945,2]
[353339711,1739782265566,-500.0,0.00013945,2]
[353339712,1739782265576,-500.0,0.00013945,2]
[353339713,1739782265586,-500.0,0.00013945,2]
[353339714,1739782265595,-500.0,0.00013945,2]
[353339715,1739782265604,-500.0,0.00013945,2]
[353339716,1739782265614,-716.43,0.00013945,2]
[353339717,1739782265624,-530.22,0.00013945,2]
[353339718,1739782265633,-500.0,0.00013945,2]
[353339719,1739782265642,-733.96,0.00013945,2]
[353339720,1739782265652,-500.0,0.00013945,2]
[353339721,1739782265662,-500.0,0.00013945,2]
[353339722,1739782265671,-500.0,0.00013945,2]
[353339723,1739782265681,-500.0,0.00013945,2]
[353339724,1739782265690,-673.88,0.00013945,2]
[353339725,1739782265699,-500.0,0.00013945,2]
[353339726,1739782265709,-511.13,0.00013945,2]
[353339727,1739782265718,-500.0,0.00013945,2]
[353339728,1739782265728,-559.67,0.00013945,2]
[353339729,1739782265738,-500.0,0.00013945,2]
[353339730,1739782265747,-778.97,0.00013945,2]
[353339731,1739782265757,-500.0,0.00013945,2]
[353339732,1739782265766,-500.0,0.00013945,2]
[353339733,1739782265776,-500.0,0.00013945,2]
[353339734,1739782265786,-500.0,0.00013945,2]
[353339735,1739782265799,-500.0,0.00013945,2]
[353339736,1739782265809,-500.0,0.00013945,2]
[353339737,1739782265819,-500.0,0.00013945,2]
[353339738,1739782265828,-1031.51,0.00013945,2]
[353339739,1739782265838,-500.0,0.00013945,2]
[353339740,1739782265847,-662.08,0.00013945,2]
[353339741,1739782265856,-500.0,0.00013945,2]
[353339742,1739782265867,-500.0,0.00013945,2]
[353339743,1739782265878,-766.22,0.00013945,2]
[353339744,1739782265888,-500.0,0.00013945,2]
[353339745,1739782265898,-500.0,0.00013945,2]
[353339746,1739782265907,-500.0,0.00013945,2]
[353339747,1739782265917,-500.0,0.00013945,2]
[353339748,1739782265927,-500.0,0.00013945,2]
[353339749,1739782265937,-500.0,0.00013945,2]
[353339750,1739782265947,-500.0,0.00013945,2]
[353339751,1739782265957,-572.19,0.00013945,2]
[353339752,1739782265967,-500.0,0.00013945,2]
[353339753,1739782265977,-500.0,0.00013945,2]
[353339754,1739782265987,-516.10462946,0.00013945,2]
[353339755,1739782265998,-500.0,0.00013945,2]
[353339756,1739782266009,-565.33888298,0.00013945,2]
[353339757,1739782266019,-527.86279873,0.00013945,2]
[353339758,1739782266029,-817.69,0.00013945,2]
[353339759,1739782266039,-500.0,0.00013945,2]
[353339760,1739782266053,-500.0,0.00013945,2]
[353339761,1739782266063,-500.0,0.00013945,2]
[353339762,1739782266074,-519.96,0.00013945,2]
[353339763,1739782266085,-500.0,0.00013945,2]
[353339764,1739782266095,-522.84,0.00013945,2]
[353339765,1739782266105,-500.0,0.00013945,2]
[353339766,1739782266116,-500.0,0.00013945,2]
[353339767,1739782266126,-500.0,0.00013945,2]
[353339768,1739782266135,-500.0,0.00013945,2]
[353339769,1739782266145,-500.0,0.00013945,2]
[353339770,1739782266155,-614.77,0.00013945,2]
[353339771,1739782266165,-2827.32,0.00013945,2]
[353339772,1739782266176,-1812.07,0.00013945,2]
[353339773,1739782266186,-500.0,0.00013945,2]
[353339774,1739782266195,-520.4,0.00013945,2]
[353339775,1739782266205,-819.14,0.00013945,2]
[353339776,1739782266215,-1274.62,0.00013945,2]
[353339777,1739782266224,-4372.56,0.00013945,2]
[353339778,1739782266233,-500.0,0.00013945,2]
[353339779,1739782266243,-500.0,0.00013945,2]
[353339780,1739782266252,-500.0,0.00013945,2]
[353339781,1739782266262,-500.0,0.00013945,2]
[353339782,1739782266271,-538.08,0.00013945,2]
[353339783,1739782266280,-1324.0,0.00013945,2]
[353339784,1739782266289,-901.12,0.00013945,2]
[353339785,1739782266302,-500.0,0.00013945,2]
[353339786,1739782266312,-1422.17,0.00013945,2]
[353339787,1739782266321,-1334.19,0.00013945,2]
[353339788,1739782266330,-817.6,0.00013945,2]
[353339789,1739782266339,-500.0,0.00013945,2]
[353339790,1739782266349,-2256.34,0.00013945,2]
[353339791,1739782266358,-500.0,0.00013945,2]
[353339792,1739782266367,-771.38,0.00013945,2]
[353339793,1739782266376,-500.0,0.00013945,2]
[353339794,1739782266385,-735.66,0.00013945,2]
[353339795,1739782266394,-2032.65,0.00013945,2]
[353339796,1739782266408,-749.45,0.00013945,2]
[353339797,1739782266417,-1125.52,0.00013945,2]
[353339798,1739782266427,-772.0,0.00013945,2]
[353339799,1739782266436,-739.22,0.00013945,2]
[353339800,1739782266447,-500.0,0.00013945,2]
[353339801,1739782266456,-1069.07,0.00013945,2]
[353339802,1739782266466,-546.19,0.00013945,2]
[353339803,1739782266475,-1494.23,0.00013945,2]
[353339804,1739782266485,-864.83,0.00013945,2]
[353339805,1739782266496,-500.0,0.00013945,2]
[353339806,1739782266506,-500.0,0.00013945,2]
[353339807,1739782266515,-935.35,0.00013945,2]
[353339808,1739782266524,-615.69,0.00013945,2]
[353339809,1739782266534,-677.77,0.00013945,2]
[353339810,1739782266543,-500.0,0.00013945,2]
[353339811,1739782266554,-707.08,0.00013945,2]
[353339812,1739782266563,-1876.33,0.00013945,2]
[353339813,1739782266574,-2554.16,0.00013945,2]
[353339814,1739782266585,-1026.29,0.00013945,2]
[353339815,1739782266594,-1043.92,0.00013945,2]
[353339816,1739782266604,-500.0,0.00013945,2]
[353339817,1739782266613,-500.0,0.00013945,2]
[353339818,1739782266622,-500.0,0.00013945,2]
[353339819,1739782266632,-500.0,0.00013945,2]
[353339820,1739782266641,-1889.27,0.00013945,2]
[353339821,1739782266653,-500.0,0.00013945,2]
[353339822,1739782266663,-500.0,0.00013945,2]
[353339823,1739782266672,-875.92,0.00013945,2]
[353339824,1739782266682,-1579.86,0.00013945,2]
[353339825,1739782266692,-500.0,0.00013945,2]
[353339826,1739782266703,-509.21534472,0.00013945,2]
[353339827,1739782266715,-500.0,0.00013945,2]
[353339828,1739782266726,-500.0,0.00013945,2]
[353339829,1739782266736,-1021.86,0.00013945,2]
[353339830,1739782266746,-2430.21,0.00013945,2]
[353339831,1739782266755,-1775.26,0.00013945,2]
[353339832,1739782266764,-1126.39,0.00013945,2]
[353339833,1739782266773,-500.0,0.00013945,2]
[353339834,1739782266782,-500.0,0.00013945,2]
[353339835,1739782266791,-1246.28,0.00013945,2]
[353339836,1739782266803,-1440.41,0.00013945,2]
[353339837,1739782266812,-500.0,0.00013945,2]
[353339838,1739782266822,-1157.83,0.00013945,2]
[353339839,1739782266831,-579.64,0.00013945,2]
[353339840,1739782266840,-500.0,0.00013945,2]
[353339841,1739782266850,-736.98,0.00013945,2]
[353339842,1739782266859,-602.96,0.00013945,2]
[353339843,1739782266868,-1734.6,0.00013945,2]
[353339844,1739782266878,-662.81,0.00013945,2]
[353339845,1739782266888,-996.06,0.00013945,2]
[353339846,1739782266897,-500.0,0.00013945,2]
[353339847,1739782266906,-1538.42,0.00013945,2]
[353339848,1739782266915,-1344.96,0.00013945,2]
[353339849,1739782266924,-500.0,0.00013945,2]
[353339850,1739782266933,-1060.38,0.00013945,2]
[353339851,1739782266942,-1225.17,0.00013945,2]
[353339852,1739782266952,-500.0,0.00013945,2]
[353339853,1739782266962,-500.0,0.00013945,2]
[353339854,1739782266971,-500.0,0.00013945,2]
[353339855,1739782266980,-500.0,0.00013945,2]
[353339856,1739782266989,-1000.0,0.00013945,2]
[353339857,1739782266998,-879.19,0.00013945,2]
[353339858,1739782267115,-516.84030514,0.00013945,2]
[353339859,1739782267125,-627.0,0.00013945,2]
[353339860,1739782267135,-500.0,0.00013945,2]
[353339861,1739782267144,-500.0,0.00013945,2]
[353339862,1739782267154,-5333.3,0.00013945,2]
[353339863,1739782267164,-1241.74,0.00013945,2]
[353339864,1739782267173,-500.0,0.00013945,2]
[353339865,1739782267182,-1771.28,0.00013945,2]
[353339866,1739782267191,-885.43,0.00013945,2]
[353339867,1739782267201,-1586.54,0.00013945,2]
[353339868,1739782267210,-1307.73,0.00013945,2]
[353339869,1739782267219,-756.31,0.00013945,2]
[353339870,1739782267229,-500.0,0.00013945,2]
[353339871,1739782267238,-500.0,0.00013945,2]
[353339872,1739782267247,-917.32,0.00013945,2]
[353339873,1739782267257,-707.23,0.00013945,2]
[353339874,1739782267266,-500.0,0.00013945,2]
[353339875,1739782267276,-2401.78,0.00013945,2]
[353339876,1739782267285,-1455.33,0.00013945,2]
[353339877,1739782267294,-1605.77,0.00013945,2]
[353339878,1739782267305,-500.0,0.00013945,2]
[353339879,1739782267314,-1089.15,0.00013945,2]
[353339880,1739782267323,-1269.98,0.00013945,2]
[353339881,1739782267332,-500.0,0.00013945,2]
[353339882,1739782267341,-998.9,0.00013945,2]
[353339883,1739782267350,-1551.79,0.00013945,2]
[353339884,1739782267360,-500.0,0.00013945,2]
[353339885,1739782267369,-1847.02,0.00013945,2]
[353339886,1739782267379,-513.25146566,0.00013945,2]
[353339887,1739782267389,-586.8,0.00013945,2]
[353339888,1739782267399,-500.0,0.00013945,2]
[353339889,1739782267409,-500.0,0.00013945,2]
[353339890,1739782267422,-1701.27,0.00013945,2]
[353339891,1739782267432,-600.56,0.00013945,2]
[353339892,1739782267441,-500.0,0.00013945,2]
[353339893,1739782267451,-886.89,0.00013945,2]
[353339894,1739782267461,-1445.61,0.00013945,2]
[353339895,1739782267471,-1575.03,0.00013945,2]
[353339896,1739782267482,-500.0,0.00013945,2]
[353339897,1739782267493,-1677.19,0.00013945,2]
[353339898,1739782267503,-1797.4,0.00013945,2]
[353339899,1739782267512,-500.0,0.00013945,2]
[353339900,1739782267521,-922.01,0.00013945,2]
[353339901,1739782267530,-500.0,0.00013945,2]
[353339902,1739782267540,-1271.08,0.00013945,2]
[353339903,1739782267550,-1813.57,0.00013945,2]
[353339904,1739782267559,-1220.73,0.00013945,2]
[353339905,1739782267569,-500.0,0.00013945,2]
[353339906,1739782267578,-500.0,0.00013945,2]
[353339907,1739782267587,-500.0,0.00013945,2]
[353339908,1739782267596,-1728.58,0.00013945,2]
[353339909,1739782267606,-4549.55,0.00013945,2]
[353339910,1739782267615,-824.72,0.00013945,2]
[353339911,1739782267623,-500.0,0.00013945,2]
[353339912,1739782267632,-1386.78,0.00013945,2]
[353339913,1739782267642,-2188.82,0.00013945,2]
[353339914,1739782267651,-500.0,0.00013945,2]
[353339915,1739782267660,-500.0,0.00013945,2]
[353339916,1739782267669,-500.0,0.00013945,2]
[353339917,1739782267678,-571.8,0.00013945,2]
[353339918,1739782267687,-500.0,0.00013945,2]
[353339919,1739782267695,-988.86,0.00013945,2]
[353339920,1739782267704,-500.0,0.00013945,2]
[353339921,1739782267713,-1847.84,0.00013945,2]
[353339922,1739782267721,-1440.2,0.00013945,2]
[353339923,1739782267731,-1053.02,0.00013945,2]
[353339924,1739782267739,-1037.56,0.00013945,2]
[353339925,1739782267749,-557.11,0.00013945,2]
[353339926,1739782267758,-500.0,0.00013945,2]
[353339927,1739782267767,-802.9,0.00013945,2]
[353339928,1739782267776,-500.0,0.00013945,2]
[353339929,1739782267785,-500.0,0.00013945,2]
[353339930,1739782267794,-2029.25,0.00013945,2]
[353339931,1739782267804,-683.14,0.00013945,2]
[353339932,1739782267814,-1363.24,0.00013945,2]
[353339933,1739782267823,-562.58,0.00013945,2]
[353339934,1739782267833,-500.0,0.00013945,2]
[353339935,1739782267842,-664.98,0.00013945,2]
[353339936,1739782267851,-500.0,0.00013945,2]
[353339937,1739782267861,-500.0,0.00013945,2]
[353339938,1739782267870,-1710.06,0.00013945,2]
[353339939,1739782267880,-649.3,0.00013945,2]
[353339940,1739782267889,-1213.04,0.00013945,2]
[353339941,1739782267899,-2532.35,0.00013945,2]
[353339942,1739782267908,-500.0,0.00013945,2]
[353339943,1739782267918,-538.6,0.00013945,2]
[353339944,1739782267927,-500.0,0.00013945,2]
[353339945,1739782267937,-702.88,0.00013945,2]
[353339946,1739782267946,-500.0,0.00013945,2]
[353339947,1739782267955,-1331.97,0.00013945,2]
[353339948,1739782267965,-900.35,0.00013945,2]
[353339949,1739782267974,-606.3,0.00013945,2]
[353339950,1739782267985,-500.0,0.00013945,2]
[353339951,1739782267994,-500.0,0.00013945,2]
[353339952,1739782268004,-500.0,0.00013945,2]
[353339953,1739782268014,-1040.4,0.00013945,2]
[353339954,1739782268023,-1450.57,0.00013945,2]
[353339955,1739782268032,-500.0,0.00013945,2]
[353339956,1739782268042,-1277.8,0.00013945,2]
[353339957,1739782268051,-500.0,0.00013945,2]
[353339958,1739782268060,-1045.42,0.00013945,2]
[353339959,1739782268069,-500.0,0.00013945,2]
[353339960,1739782268078,-506.05216352,0.00013945,2]
[353339961,1739782268088,-500.0,0.00013945,2]
[353339962,1739782268097,-844.67,0.00013945,2]
[353339963,1739782268106,-1239.77,0.00013945,2]
[353339964,1739782268115,-1330.04,0.00013945,2]
[353339965,1739782268125,-500.0,0.00013945,2]
[353339966,1739782268134,-545.47,0.00013945,2]
[353339967,1739782268143,-500.0,0.00013945,2]
[353339968,1739782268153,-753.37,0.00013945,2]
[353339969,1739782268163,-1295.43,0.00013945,2]
[353339970,1739782268172,-500.0,0.00013945,2]
[353339971,1739782268182,-500.0,0.00013945,2]
[353339972,1739782268192,-538.43,0.00013945,2]
[353339973,1739782268202,-500.0,0.00013945,2]
[353339974,1739782268212,-1569.09,0.00013945,2]
[353339975,1739782268223,-616.97249685,0.00013959,2]
[353339976,1739782268232,-500.0,0.00013968,2]
[353339977,1739782268244,-500.0,0.00013968,2]
[353339978,1739782268253,-500.0,0.00013973,7]
[353339979,1739782268263,-500.0,0.00013975,2]
[353339980,1739782268272,-54158.1391243,0.0001399,2]
[353339981,1739782268281,-650.0,0.00014,2]
[353339982,1739782268290,-5118.45877163,0.00014,2]
[353339983,1739782268299,-5418.21878001,0.00014018,2]
[353339984,1739782268308,-2672.6961306,0.00014018,2]
[353339985,1739782268318,-764.1287842,0.00014018,2]
[353339986,1739782268328,-247.31,0.00014022,2]
[353339987,1739782268338,-808.574074,0.00014027,2]
[353339988,1739782268347,-655.639204,0.00014027,2]
[353339989,1739782268356,-500.0,0.00014027,2]
[353339990,1739782268365,-500.0,0.00014027,2]
[353339991,1739782268374,-500.0,0.00014027,2]
[353339992,1739782268383,-500.0,0.00014027,2]
[353339993,1739782268392,-500.0,0.00014027,2]
[353339994,1739782268405,-500.0,0.00014027,2]
[353339995,1739782268415,-519.57487941,0.00014027,2]
[353339996,1739782268424,-500.0,0.00014027,2]
[353339997,1739782268433,-500.0,0.00014027,2]
[353339998,1739782268443,-500.0,0.00014027,2]
[353339999,1739782268452,-500.0,0.00014027,2]
[353340000,1739782268461,-500.0,0.00014027,2]
[353340001,1739782268470,-500.0,0.00014027,2]
[353340002,1739782268479,-500.0,0.00014027,2]
[353340003,1739782268489,-500.0,0.00014027,2]
[353340004,1739782268499,-500.0,0.00014027,2]
[353340005,1739782268508,-500.0,0.00014027,2]
[353340006,1739782268517,-500.0,0.00014027,2]
[353340007,1739782268526,-500.0,0.00014027,2]
[353340008,1739782268537,-500.0,0.00014027,2]
[353340009,1739782268546,-500.0,0.00014027,2]
[353340010,1739782268556,-500.0,0.00014027,2]
[353340011,1739782268565,-500.0,0.00014027,2]
[353340012,1739782268574,-500.0,0.00014027,2]
[353340013,1739782268584,-500.0,0.00014027,2]
[353340014,1739782268682,-413.61607385,0.00014027,2]
[353340015,1739782268701,-500.0,0.00014027,2]
[353340016,1739782268711,-500.0,0.00014027,2]
[353340017,1739782268720,-500.0,0.00014027,2]
[353340018,1739782268731,-604.74,0.00014027,2]
[353340019,1739782268741,-500.0,0.00014027,2]
[353340020,1739782268750,-500.0,0.00014027,2]
[353340021,1739782268759,-500.0,0.00014027,2]
[353340022,1739782268768,-575.7,0.00014027,2]
[353340023,1739782268778,-907.72,0.00014027,2]
[353340024,1739782268787,-500.0,0.00014027,2]
[353340025,1739782268797,-500.0,0.00014027,2]
[353340026,1739782268808,-732.02,0.00014027,2]
[353340027,1739782268817,-338.60741788,0.00014027,2]
[353340028,1739782268827,-562.63,0.00014027,2]
[353340029,1739782268836,-500.0,0.00014027,2]
[353340030,1739782268845,-500.0,0.00014027,2]
[353340031,1739782268855,-951.64,0.00014027,2]
[353340032,1739782268864,-500.0,0.00014027,2]
[353340033,1739782268874,-633.77,0.00014027,2]
[353340034,1739782268884,-664.66,0.00014027,2]
[353340035,1739782268894,-500.0,0.00014027,2]
[353340036,1739782268903,-500.0,0.00014027,2]
[353340037,1739782268913,-722.21,0.00014027,2]
[353340038,1739782268923,-500.0,0.00014027,2]
[353340039,1739782268933,-592.21,0.00014027,2]
[353340040,1739782268943,-500.0,0.00014027,2]
[353340041,1739782268956,-500.0,0.00014027,2]
[353340042,1739782268966,-500.0,0.00014027,2]
[353340043,1739782268976,-507.13,0.00014027,2]
[353340044,1739782268985,-500.0,0.00014027,2]
[353340045,1739782268995,-995.97,0.00014027,2]
[353340046,1739782269006,-536.86,0.00014027,2]
[353340047,1739782269015,-525.0859338,0.00014027,2]
[353340048,1739782269025,-566.9,0.00014027,2]
[353340049,1739782269035,-500.0,0.00014027,2]
[353340050,1739782269044,-500.0,0.00014027,2]
[353340051,1739782269056,-500.0,0.00014027,2]
[353340052,1739782269065,-500.0,0.00014027,2]
[353340053,1739782269074,-347.41592471,0.00014027,2]
[353340054,1739782269084,-500.0,0.00014027,2]
[353340055,1739782269094,-500.0,0.00014027,2]
[353340056,1739782269103,-500.0,0.00014027,2]
[353340057,1739782269112,-500.0,0.00014027,2]
[353340058,1739782269122,-500.0,0.00014027,2]
[353340059,1739782269132,-500.0,0.00014027,2]
[353340060,1739782269142,-500.0,0.00014027,2]
[353340061,1739782269152,-500.0,0.00014027,2]
[353340062,1739782269161,-500.0,0.00014027,2]
[353340063,1739782269171,-738.44,0.00014027,2]
[353340064,1739782269180,-500.0,0.00014027,2]
[353340065,1739782269190,-580.16,0.00014027,2]
[353340066,1739782269199,-500.0,0.00014027,2]
[353340067,1739782269208,-619.49,0.00014027,2]
[353340068,1739782269217,-560.76,0.00014027,2]
[353340069,1739782269226,-500.0,0.00014027,2]
[353340070,1739782269236,-500.0,0.00014027,2]
[353340071,1739782269246,-500.0,0.00014027,2]
[353340072,1739782269255,-1077.47,0.00014027,2]
[353340073,1739782269264,-536.91,0.00014027,2]
[353340074,1739782269273,-500.0,0.00014027,2]
[353340075,1739782269283,-500.0,0.00014027,2]
[353340076,1739782269292,-558.82,0.00014027,2]
[353340077,1739782269301,-500.0,0.00014027,2]
[353340078,1739782269311,-850.62,0.00014027,2]
[353340079,1739782269320,-500.0,0.00014027,2]
[353340080,1739782269330,-708.1,0.00014027,2]
[353340081,1739782269339,-500.0,0.00014027,2]
[353340082,1739782269349,-641.57,0.00014027,2]
[353340083,1739782269358,-528.32,0.00014027,2]
[353340084,1739782269368,-500.0,0.00014027,2]
[353340085,1739782269377,-684.2,0.00014027,2]
[353340086,1739782269386,-890.46,0.00014027,2]
[353340087,1739782269395,-612.05,0.00014027,2]
[353340088,1739782269405,-500.0,0.00014027,2]
[353340089,1739782269418,-568.28,0.00014027,2]
[353340090,1739782269427,-500.0,0.00014027,2]
[353340091,1739782269437,-537.33,0.00014027,2]
[353340092,1739782269447,-558.38226011,0.00014027,2]
[353340093,1739782269457,-647.11,0.00014027,2]
[353340094,1739782269466,-743.6,0.00014027,2]
[353340095,1739782269475,-783.7,0.00014027,2]
[353340096,1739782269485,-559.89,0.00014027,2]
[353340097,1739782269496,-649.94,0.00014027,2]
[353340098,1739782269506,-500.0,0.00014027,2]
[353340099,1739782269516,-500.0,0.00014027,2]
[353340100,1739782269525,-500.0,0.00014027,2]
[353340101,1739782269535,-500.0,0.00014027,2]
[353340102,1739782269544,-500.0,0.00014027,2]
[353340103,1739782269555,-500.0,0.00014027,2]
[353340104,1739782269565,-560.76,0.00014027,2]
[353340105,1739782269575,-950.17,0.00014027,2]
[353340106,1739782269585,-500.0,0.00014027,2]
[353340107,1739782269595,-593.13,0.00014027,2]
[353340108,1739782269604,-561.01,0.00014027,2]
[353340109,1739782269613,-500.0,0.00014027,2]
[353340110,1739782269623,-500.0,0.00014027,2]
[353340111,1739782269632,-500.0,0.00014027,2]
[353340112,1739782269641,-500.0,0.00014027,2]
[353340113,1739782269650,-500.0,0.00014027,2]
[353340114,1739782269659,-500.0,0.00014027,2]
[353340115,1739782269668,-500.0,0.00014027,2]
[353340116,1739782269677,-500.0,0.00014027,2]
[353340117,1739782269687,-622.63,0.00014027,2]
[353340118,1739782269696,-500.0,0.00014027,2]
[353340119,1739782269706,-500.0,0.00014027,2]
[353340120,1739782269715,-508.41,0.00014027,2]
[353340121,1739782269724,-500.0,0.00014027,2]
[353340122,1739782269733,-500.0,0.00014027,2]
[353340123,1739782269742,-500.0,0.00014027,2]
[353340124,1739782269751,-326.37083397,0.00014027,2]
[353340125,1739782269760,-500.0,0.00014027,2]
[353340126,1739782269769,-716.43,0.00014027,2]
[353340127,1739782269778,-530.22,0.00014027,2]
[353340128,1739782269787,-500.0,0.00014027,2]
[353340129,1739782269797,-733.96,0.00014027,2]
[353340130,1739782269808,-500.0,0.00014027,2]
[353340131,1739782269817,-500.0,0.00014027,2]
[353340132,1739782269826,-500.0,0.00014027,2]
[353340133,1739782269836,-500.0,0.00014027,2]
[353340134,1739782269845,-673.88,0.00014027,2]
[353340135,1739782269854,-500.0,0.00014027,2]
[353340136,1739782269863,-511.13,0.00014027,2]
[353340137,1739782269872,-500.0,0.00014027,2]
[353340138,1739782269881,-559.67,0.00014027,2]
[353340139,1739782269890,-500.0,0.00014027,2]
[353340140,1739782269899,-778.97,0.00014027,2]
[353340141,1739782269909,-500.0,0.00014027,2]
[353340142,1739782269918,-500.0,0.00014027,2]
[353340143,1739782269927,-500.0,0.00014027,2]
[353340144,1739782269936,-500.0,0.00014027,2]
[353340145,1739782269945,-500.0,0.00014027,2]
[353340146,1739782269954,-500.0,0.00014027,2]
[353340147,1739782269963,-500.0,0.00014027,2]
[353340148,1739782269973,-1031.51,0.00014027,2]
[353340149,1739782269982,-500.0,0.00014027,2]
[353340150,1739782269991,-662.08,0.00014027,2]
[353340151,1739782270000,-500.0,0.00014027,2]
[353340152,1739782270009,-500.0,0.00014027,2]
[353340153,1739782270019,-766.22,0.00014027,2]
[353340154,1739782270028,-500.0,0.00014027,2]
[353340155,1739782270037,-500.0,0.00014027,2]
[353340156,1739782270047,-500.0,0.00014027,2]
[353340157,1739782270058,-500.0,0.00014027,2]
[353340158,1739782270068,-294.78614454,0.00014027,2]
[353340159,1739782270079,-500.0,0.00014027,2]
[353340160,1739782270089,-500.0,0.00014027,2]
[353340161,1739782270098,-572.19,0.00014027,2]
[353340162,1739782270108,-500.0,0.00014027,2]
[353340163,1739782270117,-500.0,0.00014027,2]
[353340164,1739782270127,-500.0,0.00014027,2]
[353340165,1739782270136,-817.69,0.00014027,2]
[353340166,1739782270145,-500.0,0.00014027,2]
[353340167,1739782270155,-500.0,0.00014027,2]
[353340168,1739782270164,-198.40843777,0.00014027,2]
[353340169,1739782270173,-519.96,0.00014027,2]
[353340170,1739782270183,-500.0,0.00014027,2]
[353340171,1739782270192,-522.84,0.00014027,2]
[353340172,1739782270201,-500.0,0.00014027,2]
[353340173,1739782270211,-500.0,0.00014027,2]
[353340174,1739782270221,-500.0,0.00014027,2]
[353340175,1739782270231,-500.0,0.00014027,2]
[353340176,1739782270240,-500.0,0.00014027,2]
[353340177,1739782270249,-614.77,0.00014027,2]
[353340178,1739782270258,-2827.32,0.00014027,2]